fUST/lending_fUST_20250305
["ID","MTS","AMOUNT","RATE_DAILY","PERIOD"]
[355443095,1741166952283,-279.89849853,0.00030065,2]
[355443096,1741166952305,-1974.2717564,0.00032923,30]
[355443144,1741167032793,-1808.58756329,0.00032923,30]
[355443146,1741167032805,-416.66666667,0.00032949,2]
[355443148,1741167032815,-300.0,0.00033899,2]
[355443150,1741167032825,-5027.52824769,0.000339,2]
[355443152,1741167032835,-2500.0,0.00034,30]
[355443154,1741167032844,-3257.81501983,0.00034712,2]
[355443156,1741167032856,-21642.18498017,0.00034712,2]
[355443158,1741167032866,-164.65744131,0.000349,2]
[355443160,1741167032875,-500.0,0.00035,10]
[355443162,1741167032885,-500.0,0.00035,10]
[355443164,1741167032894,-612.29532812,0.00035,10]
[355443166,1741167032904,-500.0,0.00035,10]
[355443168,1741167032913,-500.0,0.00035,10]
[355443170,1741167032922,-500.0,0.00035,10]
[355443172,1741167032932,-500.0,0.00035,10]
[355443174,1741167032942,-2200.0,0.00035566,7]
[355443177,1741167032951,-500.0,0.0003589,2]
[355443180,1741167032961,-691.86444369,0.000359,7]
[355443182,1741167032971,-502.0,0.00036,30]
[355443184,1741167032980,-160.0,0.00037233,2]
[355443186,1741167032989,-502.0,0.00038,120]
[355443188,1741167032999,-600.0,0.000384,2]
[355443190,1741167033008,-602.11243134,0.000388,2]
[355443192,1741167033018,-168.6186835,0.00039199,4]
[355443194,1741167033028,-5025.65684161,0.00039549,2]
[355443196,1741167033039,-7869.27783124,0.00039798,2]
[355443198,1741167033051,-1044.93599998,0.00039798,2]
[355443200,1741167033064,-2031.41035538,0.00039798,2]
[355443212,1741167038627,-4353.811,0.00039798,14]
[355443213,1741167038637,-3846.289,0.00039798,2]
[355443214,1741167038649,-3455.65,0.00039798,2]
[355443215,1741167038684,-713.56859727,0.00039798,2]
[355443307,1741167043838,-8003.56962152,0.00039798,2]
[355443308,1741167043850,-10600.78916842,0.00039798,2]
[355443348,1741167046673,-442.985,0.00039798,2]
[355443453,1741168016153,-416.66666667,0.00028,3]
[355443454,1741168016415,-416.66666667,0.00028,3]
[355443455,1741168016437,-416.66666667,0.00028,7]
[355443456,1741168016458,-315.2844833,0.00032,5]
[355443561,1741168237821,200.0,0.000259,2]
[355443594,1741168243930,-416.66666667,0.00028,3]
[355443595,1741168243939,-416.66666667,0.00028,3]
[355443596,1741168243949,-416.66666667,0.00028,3]
[355443597,1741168243958,-534.63738492,0.000299,2]
[355443598,1741168243968,-398.17,0.000318,2]
[355443599,1741168243978,-300.0,0.000319,2]
[355443600,1741168243987,-164.65744131,0.000319,2]
[355443601,1741168243997,-500.0,0.00031973,5]
[355443602,1741168244007,-500.0,0.00031973,5]
[355443603,1741168244017,-178.73517193,0.00031973,5]
[355443604,1741168244026,-500.0,0.00031973,5]
[355443605,1741168244035,-500.0,0.00031973,5]
[355443606,1741168244045,-500.0,0.00031973,5]
[355443607,1741168244055,-646.8690687,0.0003199,2]
[355443608,1741168244065,-165.43,0.00032,7]
[355443609,1741168244074,-82299.16904913,0.00032,7]
[355443611,1741168244227,-173.92049815,0.00032,7]
[355443716,1741168394397,3337.0,0.00025999,2]
[355443720,1741168470256,500.0,0.00025,30]
[355443721,1741168492257,2000.0,0.00025,30]
[355443724,1741168631697,5000.0,0.00026,30]
[355443725,1741168641965,500.0,0.00026,2]
[355443726,1741168653036,500.0,0.00026,30]
[355443727,1741168669109,4500.0,0.00026,30]
[355443728,1741168680653,500.0,0.00026,2]
[355443730,1741168691590,2000.04487603,0.00026,2]
[355443732,1741168698190,2500.0,0.00026,30]
[355443733,1741168705157,2500.0,0.00026,30]
[355443734,1741168717235,500.0,0.00026,30]
[355443735,1741168724076,352.64297936,0.00026,30]
[355443766,1741169324291,356.42492328,0.000239,2]
[355443767,1741169365161,-500.0,0.00026,2]
[355443768,1741169365184,-600.0,0.00026,30]
[355443769,1741169365206,-547.0,0.00026,30]
[355443770,1741169365228,-309.042832,0.000266,2]
[355443771,1741169365250,-416.66666667,0.00028,3]
[355443772,1741169365272,-416.66666667,0.00028,3]
[355443773,1741169365295,-416.66666667,0.00028,3]
[355443774,1741169365318,-1489.83643491,0.00028487,2]
[355443802,1741169432372,-5600.08722001,0.00028487,2]
[355443880,1741169438008,-1605.93663788,0.00028487,2]
[355443881,1741169438019,-356.42492328,0.000289,2]
[355443882,1741169438029,-200.74756948,0.000315,2]
[355443883,1741169438039,-164.65744131,0.000319,2]
[355443884,1741169438050,-668.80229577,0.000319,6]
[355443885,1741169438063,-500.0,0.00031973,5]
[355443886,1741169438073,-500.0,0.00031973,5]
[355443887,1741169438083,-500.0,0.00031973,5]
[355443888,1741169438092,-402.4963094,0.0003199,2]
[355443889,1741169438102,-6292.35090533,0.00032,7]
[355443890,1741169438114,-44196.5,0.00032,7]
[355443895,1741169440414,-1000.0,0.00032,7]
[355443899,1741169443352,-1166.70000005,0.00032,7]
[355443964,1741169446142,-26580.0,0.00032,7]
[355444237,1741170514946,8365.20056416,0.00022,2]
[355444242,1741170522495,272.72937017,0.0002045,30]
[355444243,1741170529328,150.0,0.000199,2]
[355444244,1741170529503,150.0,0.000249,2]
[355444250,1741170571104,-416.66666667,0.00028,3]
[355444251,1741170571134,-416.66666667,0.00028,3]
[355444252,1741170571160,-416.66666667,0.00028,3]
[355444253,1741170571186,-300.0,0.00028386,2]
[355444254,1741170571211,-1697.57360364,0.00028387,2]
[355444255,1741170571236,-3315.59684235,0.00028387,2]
[355444281,1741170632367,-2010.63159233,0.00028387,2]
[355444282,1741170632377,-418.99694587,0.00029254,2]
[355444284,1741170632387,-400.0,0.00030999,2]
[355444286,1741170632397,-32565.72659817,0.00031,5]
[355444288,1741170632407,-212.01475126,0.00031566,2]
[355444290,1741170632416,-397.0,0.00031666,2]
[355444292,1741170632429,-416.66666667,0.00031826,2]
[355444293,1741170632439,-646.50888594,0.000319,6]
[355444295,1741170632448,-500.0,0.00031973,5]
[355444298,1741170632458,-201.24815472,0.0003199,2]
[355444300,1741170632468,-150.0,0.00031999,2]
[355444302,1741170632477,-500.0,0.00031999,2]
[355444303,1741170632487,-500.0,0.00031999,2]
[355444307,1741170632496,-500.0,0.00031999,2]
[355444309,1741170632506,-300.0,0.00031999,2]
[355444310,1741170632516,-500.0,0.00031999,2]
[355444312,1741170632526,-500.0,0.00031999,2]
[355444314,1741170632536,-500.0,0.00031999,2]
[355444316,1741170632546,-500.0,0.00031999,2]
[355444318,1741170632555,-500.0,0.00031999,2]
[355444321,1741170632564,-500.0,0.00031999,2]
[355444322,1741170632573,-500.0,0.00031999,2]
[355444324,1741170632583,-500.0,0.00031999,2]
[355444326,1741170632592,-386.24607425,0.00031999,2]
[355444328,1741170632601,-500.0,0.00031999,2]
[355444330,1741170632610,-500.0,0.00031999,2]
[355444332,1741170632620,-500.0,0.00031999,2]
[355444334,1741170632629,-500.0,0.00031999,2]
[355444336,1741170632638,-500.0,0.00031999,2]
[355444338,1741170632647,-500.0,0.00031999,2]
[355444339,1741170632656,-500.0,0.00031999,2]
[355444340,1741170632666,-500.0,0.00031999,2]
[355444341,1741170632677,-500.0,0.00031999,2]
[355444342,1741170632687,-215402.91531388,0.00032,7]
[355444343,1741170632696,-165.43,0.00032,7]
[355444344,1741170632706,-300.0,0.00032,7]
[355444345,1741170632716,-160.0,0.00032,7]
[355444346,1741170632726,-351.0,0.00032,7]
[355444347,1741170632735,-336.28052428,0.00032,7]
[355444348,1741170632746,-386.91195576,0.00032,7]
[355444349,1741170632757,-416.66666667,0.00032,7]
[355444350,1741170632766,-230.33,0.000329,30]
[355444351,1741170632776,-150.0,0.00033369,2]
[355444352,1741170632786,-461.0,0.00033376,2]
[355444353,1741170632796,-397.0,0.00034666,2]
[355444354,1741170632807,-150.0,0.00034739,2]
[355444355,1741170632818,-174.0,0.00035,2]
[355444356,1741170632827,-4077.91,0.000351,30]
[355444357,1741170632837,-324.84,0.000351,30]
[355444358,1741170632846,-500.0,0.0003589,2]
[355444359,1741170632855,-150.0,0.00036109,2]
[355444360,1741170632865,-12005.22700187,0.000362,98]
[355444361,1741170632874,-12005.22700187,0.000362,98]
[355444362,1741170632883,-164.82,0.00037479,2]
[355444363,1741170632893,-363.405,0.00037666,2]
[355444364,1741170632902,-12005.22700187,0.00037815,107]
[355444365,1741170632912,-153.0,0.00037973,30]
[355444366,1741170632924,-306.0,0.00037973,30]
[355444367,1741170632933,-1000.0,0.00038329,120]
[355444368,1741170632943,-1000.0,0.00038356,120]
[355444369,1741170632952,-230.33,0.000384,30]
[355444370,1741170632962,-21924.4090382,0.00039,2]
[355444371,1741170632971,-6000.0,0.00039,2]
[355444372,1741170632981,-168.6186835,0.00039002,4]
[355444373,1741170632990,-154.5382903,0.00039123,30]
[355444374,1741170633001,-306.0,0.00039123,30]
[355444375,1741170633010,-324.84,0.000392,30]
[355444376,1741170633020,-484.36191958,0.00039406,5]
[355444377,1741170633029,-4077.91,0.000396,30]
[355444378,1741170633039,-416.66666667,0.000396,30]
[355444379,1741170633048,-3578.889,0.000398,60]
[355444380,1741170633058,-151.0,0.000398,14]
[355444381,1741170633067,-675.186268,0.000398,14]
[355444382,1741170633077,-675.186268,0.000398,14]
[355444383,1741170633087,-3680.0,0.000399,30]
[355444384,1741170633098,-3000.0,0.000399,2]
[355444385,1741170633109,-151.0,0.000399,14]
[355444386,1741170633119,-675.186268,0.000399,14]
[355444387,1741170633130,-675.186268,0.000399,14]
[355444388,1741170633141,-16824.30770411,0.000399,30]
[355444389,1741170633152,-8204.74812423,0.000399,2]
[355444390,1741170633161,-500.0,0.00039973,5]
[355444391,1741170633174,-500.0,0.00039973,5]
[355444392,1741170633184,-500.0,0.00039973,5]
[355444393,1741170633194,-500.0,0.00039973,5]
[355444394,1741170633204,-309.20271825,0.00039973,5]
[355444395,1741170633213,-500.0,0.00039973,5]
[355444396,1741170633223,-500.0,0.00039973,5]
[355444397,1741170633233,-804.99261888,0.0003999,3]
[355444398,1741170633242,-984.16499917,0.00039999,120]
[355444399,1741170633252,-368596.63480547,0.0004,30]
[355444442,1741170638222,-6803.79980931,0.0004,30]
[355444566,1741170643504,-777.07472622,0.0004,30]
[355444569,1741170643517,-44479.60404622,0.0004,30]
[355444571,1741170643533,-39031.97811826,0.0004,30]
[355444682,1741170646253,-317.66,0.0003999,3]
[355444684,1741170646263,-86344.13988829,0.0004,30]
[355444686,1741170646276,-291.81002976,0.0004,30]
[355444688,1741170646287,-538.52040864,0.0004,30]
[355444773,1741171503077,500.0,0.00022173,2]
[355444777,1741171604135,-248.88070688,0.00028,3]
[355444792,1741171754086,-849.81870913,0.000259,2]
[355444793,1741171754112,-167.78595979,0.00028,3]
[355444794,1741171754134,-416.66666667,0.00028,3]
[355444795,1741171754155,-270.14954624,0.00028,3]
[355444836,1741171832542,-146.51712043,0.00028,3]
[355444838,1741171832552,-849.81870913,0.000309,2]
[355444840,1741171832562,-1712.298,0.00033056,2]
[355444843,1741171832571,-293.44,0.00035,14]
[355444845,1741171832581,-500.0,0.0003589,2]
[355444846,1741171832590,-849.81870913,0.000359,2]
[355444848,1741171832599,-400.0,0.00037486,2]
[355444850,1741171832609,-651.04436956,0.000379,8]
[355444852,1741171832619,-416.66666667,0.00038254,2]
[355444855,1741171832628,-487.2735773,0.00039101,4]
[355444857,1741171832638,-284.59666671,0.00039549,2]
[355444859,1741171832647,-212.01475125,0.00039799,2]
[355444861,1741171832657,-177.99278365,0.000398,2]
[355444863,1741171832666,-1179.21260508,0.00039857,2]
[355444865,1741171832678,-500.0,0.00039873,5]
[355444867,1741171832688,-500.0,0.00039873,5]
[355444869,1741171832697,-500.0,0.00039873,5]
[355444871,1741171832707,-500.0,0.00039873,5]
[355444873,1741171832717,-500.0,0.00039873,5]
[355444875,1741171832726,-284.66841117,0.00039873,5]
[355444877,1741171832736,-500.0,0.00039873,5]
[355444879,1741171832745,-505.54191709,0.00039873,5]
[355444881,1741171832755,-193.48255796,0.00039876,2]
[355444884,1741171832765,-5000.0,0.0003988,120]
[355444887,1741171832775,-264.72,0.0003989,3]
[355444890,1741171832786,-500.0,0.00039899,2]
[355444893,1741171832795,-500.0,0.00039899,2]
[355444895,1741171832804,-268.37638595,0.00039899,2]
[355444897,1741171832814,-48367.594698,0.00039899,30]
[355444899,1741171832823,-416.66666667,0.00039899,30]
[355444901,1741171832833,-524.97314539,0.00039899,120]
[355444904,1741171832842,-3000.0,0.000399,2]
[355444906,1741171832852,-151196.29970561,0.000399,2]
[355444908,1741171832864,-468.04,0.000399,2]
[355444910,1741171832875,-356.05771849,0.000399,2]
[355444912,1741171832886,-2126.83669878,0.000399,2]
[355444914,1741171832897,-6416.4597546,0.000399,2]
[355444918,1741171832928,-628.63856844,0.0003989,3]
[355444920,1741171832938,-165.55143156,0.0003989,3]
[355444923,1741171832948,-1711.94208774,0.000399,2]
[355444926,1741171832970,-3435.28023237,0.000399,2]
[355445159,1741171838376,-1680.51653166,0.000399,2]
[355445161,1741171838389,-657.87204931,0.000399,2]
[355445164,1741171838402,-53950.69522144,0.000399,2]
[355445166,1741171838412,-166.46,0.000399,7]
[355445168,1741171838424,-7384.27331178,0.000399,2]
[355445170,1741171838435,-500.0,0.00039973,5]
[355445173,1741171838445,-196.6757767,0.00039973,5]
[355445176,1741171838456,-9918.8093195,0.0004,30]
[355445179,1741171838468,-15535.1258977,0.0004,30]
[355445181,1741171838480,-7060.80686333,0.0004,30]
[355445616,1741171843507,-779.71581523,0.0004,30]
[355445618,1741171843519,-3333.46399131,0.0004,30]
[355445631,1741171843613,-2035.29055552,0.0004,30]
[355445776,1741171846518,-500.0,0.00039899,2]
[355445777,1741171846527,-500.0,0.00039899,2]
[355445778,1741171846536,-500.0,0.00039899,2]
[355445779,1741171846545,-300.0,0.00039899,2]
[355445780,1741171846554,-1634.46481128,0.0004,30]
[355445781,1741171846565,-1022.50000004,0.0004,30]
[355445869,1741172495306,1130.85,0.00025,2]
[355445873,1741172690218,697.08,0.00025,2]
[355445874,1741172713506,150.0,0.00025,2]
[355445959,1741173032735,-1633.008897,0.000266,2]
[355445960,1741173032745,-300.0,0.00026719,2]
[355445961,1741173032755,-15625.0,0.0002672,2]
[355445962,1741173032765,-403.727203,0.000269,4]
[355445988,1741173038544,-225.61568771,0.000269,4]
[355445990,1741173038554,-4447.73888876,0.000279,60]
[355445991,1741173038563,-416.66666667,0.00028,3]
[355445992,1741173038573,-416.66666667,0.00028,3]
[355445993,1741173038583,-150.0,0.00033056,2]
[355445994,1741173038592,-186.087,0.00033056,2]
[355445995,1741173038602,-1010.561057,0.00033198,2]
[355445996,1741173038612,-265.5749891,0.00033332,44]
[355445997,1741173038621,-500.0,0.0003589,2]
[355445998,1741173038631,-150.0,0.00036056,2]
[355445999,1741173038640,-1203.48904409,0.000362,98]
[355446000,1741173038751,-3598.60175669,0.000362,98]
[355446001,1741173038761,-4802.09080074,0.000362,98]
[355446002,1741173038770,-4802.09080074,0.000362,98]
[355446003,1741173038780,-160.0,0.00036384,2]
[355446004,1741173038789,-416.66666667,0.00037047,2]
[355446005,1741173038799,-508.5726916,0.00038356,9]
[355446006,1741173038809,-500.0,0.00038356,9]
[355446007,1741173038818,-2440.98,0.00038356,9]
[355446008,1741173038828,-914.19,0.00038356,9]
[355446009,1741173038837,-500.0,0.00038356,9]
[355446010,1741173038847,-991.06,0.00038356,9]
[355446011,1741173038857,-404.09588188,0.00038356,9]
[355446012,1741173038881,-95.90411812,0.00038356,9]
[355446013,1741173038891,-505.03,0.00038356,9]
[355446014,1741173038900,-409.62693891,0.00038356,9]
[355446047,1741173041117,-396.0,0.00033056,2]
[355446048,1741173041135,-90.37306109,0.00038356,9]
[355446049,1741173041144,-3350.66,0.00038356,9]
[355446050,1741173041154,-4129.38,0.00038356,9]
[355446051,1741173041163,-2344.97,0.00038356,9]
[355446052,1741173041173,-1632.3,0.00038356,9]
[355446053,1741173041183,-900.04,0.00038356,9]
[355446054,1741173041193,-500.0,0.00038356,9]
[355446055,1741173041204,-500.0,0.00038356,9]
[355446056,1741173041214,-874.83,0.00038356,9]
[355446057,1741173041223,-500.0,0.00038356,9]
[355446058,1741173041234,-2121.41,0.00038356,9]
[355446059,1741173041243,-500.0,0.00038356,9]
[355446060,1741173041252,-6398.88,0.00038356,9]
[355446061,1741173041263,-150.88958998,0.00038356,9]
[355446076,1741173043642,-1552.27394641,0.00038356,9]
[355446084,1741173046623,-65.99646361,0.00038356,9]
[355446085,1741173046633,-624.71,0.00038356,9]
[355446086,1741173046643,-7205.74,0.00038356,9]
[355446087,1741173046654,-500.0,0.00038356,9]
[355446088,1741173046663,-578.95353424,0.00038356,9]
[355446089,1741173046675,-1258.44995996,0.00038356,9]
[355446090,1741173046686,-1485.4999998,0.00038356,9]
[355446094,1741173046768,-1386.666506,0.00038356,9]
[355446095,1741173046781,-2146.23,0.00038356,9]
[355446097,1741173046793,-505.99339329,0.00038356,2]
[355446098,1741173046806,-500.0,0.00038356,9]
[355446099,1741173046817,-500.0,0.00038356,9]
[355446100,1741173046827,-549.95,0.00038356,9]
[355446101,1741173046839,-500.0,0.00038356,9]
[355446102,1741173046851,-500.0,0.00038356,2]
[355446103,1741173046862,-500.0,0.00038356,2]
[355446104,1741173046873,-500.0,0.00038356,2]
[355446105,1741173046886,-500.0,0.00038356,9]
[355446106,1741173046897,-7503.98597734,0.00038356,2]
[355446117,1741173445974,785.78788428,0.0001812,2]
[355446122,1741173569352,10000.0,0.00025,2]
[355446123,1741173588276,6787.4,0.00025,2]
[355446223,1741174231953,-416.66666667,0.00028,3]
[355446224,1741174231963,-416.66666667,0.00028,3]
[355446225,1741174231973,-500.0,0.00028,2]
[355446226,1741174231983,-500.0,0.00028,2]
[355446227,1741174231993,-1033.0255911,0.00031294,2]
[355446228,1741174232003,-399.0,0.00032922,2]
[355446229,1741174232013,-1974.2717564,0.00032923,30]
[355446230,1741174232023,-192.45,0.00033761,2]
[355446231,1741174232032,-192.45,0.00033761,2]
[355446232,1741174232042,-24900.0,0.00033771,2]
[355446233,1741174232052,-192.45,0.00034382,2]
[355446234,1741174232062,-192.45,0.00034382,2]
[355446235,1741174232072,-192.45,0.00034382,2]
[355446236,1741174232081,-192.45,0.00034382,2]
[355446237,1741174232091,-150.0,0.00034392,2]
[355446239,1741174232102,-539.0,0.00034392,2]
[355446241,1741174232111,-1955.0,0.00034392,2]
[355446243,1741174232121,-2278.0,0.00034392,2]
[355446245,1741174232131,-402.365,0.00034392,2]
[355446248,1741174232151,-192.45,0.0003489,2]
[355446250,1741174232162,-608.36479415,0.000349,7]
[355446253,1741174232176,-192.45,0.0003499,2]
[355446255,1741174232186,-355.28,0.00035,7]
[355446257,1741174232197,-507.62523983,0.00035,5]
[355446259,1741174232208,-500.0,0.0003589,2]
[355446261,1741174232218,-160.0,0.00036,120]
[355446263,1741174232228,-192.45,0.00036171,2]
[355446265,1741174232239,-192.45,0.00036171,2]
[355446267,1741174232249,-192.45,0.00036171,2]
[355446269,1741174232259,-192.45,0.00036171,2]
[355446273,1741174232270,-192.45,0.00036171,2]
[355446276,1741174232280,-192.45,0.00036171,2]
[355446279,1741174232290,-192.45,0.00036171,2]
[355446281,1741174232300,-192.45,0.00036171,2]
[355446286,1741174232311,-192.45,0.00036171,2]
[355446288,1741174232321,-192.45,0.00036171,2]
[355446290,1741174232331,-15625.0,0.00036181,2]
[355446292,1741174232341,-416.66666667,0.00036181,2]
[355446294,1741174232352,-160.0,0.00036309,2]
[355446296,1741174232362,-155.103573,0.00036813,3]
[355446298,1741174232373,-170.0,0.000374,120]
[355446300,1741174232383,-554.72049939,0.00037694,2]
[355446302,1741174232394,-158.71700597,0.000379,2]
[355446304,1741174232404,-158.71700593,0.00037989,2]
[355446306,1741174232414,-355.93,0.0003799,3]
[355446308,1741174232430,-177.96,0.0003799,3]
[355446310,1741174232441,-533.91,0.0003799,3]
[355446312,1741174232451,-1309.15391814,0.0003799,3]
[355446315,1741174232462,-500.0,0.00037999,15]
[355446317,1741174232472,-353.71502754,0.00037999,15]
[355446319,1741174232481,-199.92710702,0.00037999,15]
[355446321,1741174232491,-638.14186108,0.00037999,15]
[355446323,1741174232501,-500.0,0.00037999,15]
[355446325,1741174232511,-500.0,0.00037999,2]
[355446327,1741174232520,-500.0,0.00037999,2]
[355446329,1741174232530,-500.0,0.00037999,15]
[355446331,1741174232540,-500.0,0.00037999,2]
[355446333,1741174232551,-500.0,0.00037999,2]
[355446335,1741174232561,-500.0,0.00037999,15]
[355446337,1741174232571,-500.0,0.00037999,2]
[355446339,1741174232581,-500.0,0.00037999,15]
[355446341,1741174232593,-500.0,0.00037999,2]
[355446343,1741174232605,-500.0,0.00037999,15]
[355446345,1741174232615,-500.0,0.00037999,2]
[355446347,1741174232625,-500.0,0.00037999,2]
[355446349,1741174232635,-500.0,0.00037999,2]
[355446351,1741174232645,-500.0,0.00037999,2]
[355446353,1741174232655,-500.0,0.00037999,2]
[355446355,1741174232664,-500.0,0.00037999,2]
[355446357,1741174232679,-500.0,0.00037999,2]
[355446360,1741174232689,-500.0,0.00037999,2]
[355446362,1741174232698,-500.0,0.00037999,2]
[355446364,1741174232708,-500.0,0.00037999,2]
[355446366,1741174232718,-500.0,0.00037999,2]
[355446368,1741174232727,-395.0,0.00037999,2]
[355446369,1741174232737,-500.0,0.00037999,2]
[355446370,1741174232747,-500.0,0.00037999,2]
[355446371,1741174232756,-500.0,0.00037999,2]
[355446372,1741174232766,-500.0,0.00037999,2]
[355446373,1741174232780,-500.0,0.00037999,2]
[355446374,1741174232790,-500.0,0.00037999,2]
[355446375,1741174232800,-500.0,0.00037999,2]
[355446376,1741174232810,-500.0,0.00037999,2]
[355446377,1741174232820,-500.0,0.00037999,2]
[355446378,1741174232830,-500.0,0.00037999,2]
[355446379,1741174232839,-500.0,0.00037999,2]
[355446380,1741174232849,-500.0,0.00037999,2]
[355446381,1741174232860,-500.0,0.00037999,2]
[355446382,1741174232870,-6578.42508425,0.00038,5]
[355446383,1741174232881,-4158.17491698,0.00038,5]
[355446384,1741174232891,-107627.90676923,0.00038,10]
[355446385,1741174232902,-416.66666667,0.00038,10]
[355446386,1741174232912,-170.0,0.00038,120]
[355446387,1741174232924,-2880.05,0.00038,2]
[355446388,1741174232934,-158.71700593,0.00038078,2]
[355446389,1741174232944,-158.71700593,0.00038167,2]
[355446390,1741174232954,-158.71700593,0.00038256,2]
[355446391,1741174232965,-4363.8463938,0.00038346,3]
[355446392,1741174232975,-500.0,0.00038355,15]
[355446393,1741174232985,-324.84201166,0.00038355,15]
[355446394,1741174232995,-572.51940422,0.00038355,15]
[355446395,1741174233005,-500.0,0.00038356,9]
[355446396,1741174233016,-500.0,0.00038356,9]
[355446397,1741174233026,-500.0,0.00038356,9]
[355446398,1741174233036,-500.0,0.00038356,9]
[355446399,1741174233046,-500.0,0.00038356,9]
[355446400,1741174233057,-500.0,0.00038356,9]
[355446401,1741174233068,-625.95,0.00038356,9]
[355446402,1741174233078,-500.0,0.00038356,9]
[355446403,1741174233089,-565.75071526,0.00038356,9]
[355446404,1741174233099,-500.0,0.00038356,9]
[355446405,1741174233109,-500.0,0.00038356,9]
[355446406,1741174233120,-500.0,0.00038356,9]
[355446407,1741174233130,-500.0,0.00038356,9]
[355446408,1741174233140,-500.0,0.00038356,9]
[355446409,1741174233150,-500.0,0.00038356,9]
[355446410,1741174233160,-500.0,0.00038356,9]
[355446411,1741174233173,-634.34,0.00038356,9]
[355446412,1741174233183,-500.0,0.00038356,9]
[355446413,1741174233194,-500.0,0.00038356,9]
[355446414,1741174233205,-500.0,0.00038356,9]
[355446415,1741174233216,-500.0,0.00038356,9]
[355446416,1741174233226,-500.0,0.00038356,9]
[355446417,1741174233237,-500.0,0.00038356,9]
[355446418,1741174233248,-280.5105487,0.00038356,9]
[355446419,1741174233259,-500.0,0.00038356,9]
[355446420,1741174233270,-500.0,0.00038356,9]
[355446421,1741174233281,-500.0,0.00038356,9]
[355446422,1741174233291,-500.0,0.00038356,9]
[355446423,1741174233302,-500.0,0.00038356,9]
[355446424,1741174233312,-487.05435772,0.00038356,9]
[355446425,1741174233323,-500.0,0.00038356,9]
[355446426,1741174233334,-500.0,0.00038356,9]
[355446427,1741174233344,-500.0,0.00038356,9]
[355446428,1741174233355,-500.0,0.00038356,9]
[355446429,1741174233368,-500.0,0.00038356,9]
[355446430,1741174233379,-500.0,0.00038356,9]
[355446431,1741174233389,-500.0,0.00038356,9]
[355446432,1741174233399,-522.67806442,0.00038356,9]
[355446433,1741174233409,-500.0,0.00038356,9]
[355446434,1741174233420,-500.0,0.00038356,9]
[355446435,1741174233430,-500.0,0.00038356,9]
[355446436,1741174233440,-500.0,0.00038356,9]
[355446437,1741174233451,-500.0,0.00038356,9]
[355446438,1741174233462,-200.0,0.00038356,7]
[355446439,1741174233473,-500.0,0.00038356,9]
[355446440,1741174233483,-500.0,0.00038356,9]
[355446441,1741174233492,-500.0,0.00038356,9]
[355446442,1741174233502,-500.0,0.00038356,9]
[355446443,1741174233512,-500.0,0.00038356,9]
[355446444,1741174233522,-500.0,0.00038356,9]
[355446445,1741174233532,-500.0,0.00038356,9]
[355446446,1741174233542,-500.0,0.00038356,9]
[355446447,1741174233553,-500.0,0.00038356,9]
[355446448,1741174233563,-500.0,0.00038356,9]
[355446449,1741174233573,-500.0,0.00038356,9]
[355446450,1741174233584,-500.0,0.00038356,9]
[355446451,1741174233596,-502.67671817,0.00038356,9]